Workbook

Sheet паспорт
A1: ПАТ "УКРТРАНСГАЗ" | G1: ПАСПОРТ ФІЗИКО-ХІМІЧНИХ ПОКАЗНИКІВ ПРИРОДНОГО ГАЗУ № 58
A2: Філія "УМГ "Київтрансгаз" | G2: переданого Лубенським ЛВУМГ та прийнятого ПАТ "Полтавагаз"
A3: Лубенський п/м Лубенське ЛВУМГ | G3: Маршрут № 58
A4: Вимірювальна хіміко-аналітична лабораторія
A5: Свідоцтво № 199-15 чинно до 31.12.2018 р. | K5: по газопроводу " Шебелинка-Полтава-Київ " | V5: за період з | X5: 2017-05-01 | Z5: по | AA5: 2017-05-31
A7: Число місяця | B7: Компонентний склад, % мол. | N7: Фізико-хімічні показники газу обчислені на основі компонентного складу, 101,325 кПа | X7: Температура точки роси за вологою (Р = 3.92 МПа), ºС | Y7: Температура точки роси за вуглеводнями, ºС | Z7: Вміст сірководню, г/м3 | AA7: Вміст меркаптанової сірки, г/м3 | AB7: Вміст механічних домішок, г/м3
N8: Густина абсолютна, кг/м3,при 20 ºС, | O8: Температура вимірювання/згоряння при 20/25°С
B9: метан, С1 | C9: етан, С2 | D9: пропан, С3 | E9: ізо-бутан, і-С4 | F9: н-бутан, н-С4 | G9: нео-пентан, нео-С5 | H9: ізо-пентан, і-С5 | I9: н-пентан, н-С5 | J9: гексани та вищі, С6+ | K9: кисень, О2 | L9: азот, N2 | M9: діоксид вуглецю, CО2 | O9: Теплота згоряння нижча | R9: Теплота згоряння вища | U9: Число Воббе вище
O10: ккал/м3 | P10: МДж/м3 | Q10: кВт⋅год/м3 | R10: ккал/м3 | S10: МДж/м3 | T10: кВт⋅год/м3 | U10: ккал/м3 | V10: МДж/м3 | W10: кВт⋅год/м3
A11: 1 | O11: 8159 | P11: 34.16 | Q11: 9.488888889 | R11: 9034 | S11: 37.83 | T11: 10.50833333 | U11: 11150 | V11: 46.68 | W11: 12.96666667 | AC11: =SUM(B11:M11)+$K$42+$N$42 -> 0
A12: 2 | B12: =[1]Лист1!$D$127 -> 87.0125 | C12: =[1]Лист1!$D$128 -> 5.592 | D12: =[1]Лист1!$D$129 -> 1.247 | E12: =[1]Лист1!$D$130 -> 0.15 | F12: =[1]Лист1!$D$131 -> 0.201 | G12: =[1]Лист1!$D$132 -> 0.0065 | H12: =[1]Лист1!$D$133 -> 0.062 | I12: =[1]Лист1!$D$134 -> 0.041 | J12: =[1]Лист1!$D$135 -> 0.084 | K12: =[1]Лист1!$D$136 -> 0.004 | L12: =[1]Лист1!$D$137 -> 0.245 | M12: =[1]Лист1!$D$138 -> 5.355 | N12: =[1]Лист1!$F$144 -> 0.7907 | O12: =[1]Лист1!$F$146 -> 8161 | P12: =[1]Лист1!$F$145 -> 34.17 | Q12: =[1]Лист1!$F$151 -> 9.491666667 | R12: =[1]Лист1!$F$148 -> 9036 | S12: =[1]Лист1!$F$147 -> 37.83 | T12: =[1]Лист1!$F$152 -> 10.50833333 | U12: =[1]Лист1!$F$150 -> 11152 | V12: =[1]Лист1!$F$149 -> 46.69 | W12: =V12/3.6 -> 12.96944444 | X12: -12.4 | Y12: -9.8 | AC12: 100
A13: 3 | O13: =[1]Лист1!$F$146 -> 8161 | P13: =[1]Лист1!$F$145 -> 34.17 | Q13: =[1]Лист1!$F$151 -> 9.491666667 | R13: =[1]Лист1!$F$148 -> 9036 | S13: =[1]Лист1!$F$147 -> 37.83 | T13: =[1]Лист1!$F$152 -> 10.50833333 | U13: =[1]Лист1!$F$150 -> 11152 | V13: =[1]Лист1!$F$149 -> 46.69 | W13: =V13/3.6 -> 12.96944444 | AC13: 0 | AD13: =IF(AC13=100,"ОК"," ") -> 
A14: 4 | O14: =[1]Лист1!$F$146 -> 8161 | P14: =[1]Лист1!$F$145 -> 34.17 | Q14: =[1]Лист1!$F$151 -> 9.491666667 | R14: =[1]Лист1!$F$148 -> 9036 | S14: =[1]Лист1!$F$147 -> 37.83 | T14: =[1]Лист1!$F$152 -> 10.50833333 | U14: =[1]Лист1!$F$150 -> 11152 | V14: =[1]Лист1!$F$149 -> 46.69 | W14: 12.96944444 | AC14: 0 | AD14: =IF(AC14=100,"ОК"," ") -> 
A15: 5 | O15: =[1]Лист1!$F$146 -> 8161 | P15: =[1]Лист1!$F$145 -> 34.17 | Q15: =[1]Лист1!$F$151 -> 9.491666667 | R15: =[1]Лист1!$F$148 -> 9036 | S15: =[1]Лист1!$F$147 -> 37.83 | T15: =[1]Лист1!$F$152 -> 10.50833333 | U15: =[1]Лист1!$F$150 -> 11152 | V15: =[1]Лист1!$F$149 -> 46.69 | W15: 12.96944444 | AC15: 0
A16: 6 | O16: =[1]Лист1!$F$146 -> 8161 | P16: =[1]Лист1!$F$145 -> 34.17 | Q16: =[1]Лист1!$F$151 -> 9.491666667 | R16: =[1]Лист1!$F$148 -> 9036 | S16: =[1]Лист1!$F$147 -> 37.83 | T16: =[1]Лист1!$F$152 -> 10.50833333 | U16: =[1]Лист1!$F$150 -> 11152 | V16: =[1]Лист1!$F$149 -> 46.69 | W16: 12.96944444 | AC16: 0
A17: 7 | O17: =[1]Лист1!$F$146 -> 8161 | P17: =[1]Лист1!$F$145 -> 34.17 | Q17: =[1]Лист1!$F$151 -> 9.491666667 | R17: =[1]Лист1!$F$148 -> 9036 | S17: =[1]Лист1!$F$147 -> 37.83 | T17: =[1]Лист1!$F$152 -> 10.50833333 | U17: =[1]Лист1!$F$150 -> 11152 | V17: =[1]Лист1!$F$149 -> 46.69 | W17: 12.96944444 | AC17: 0
A18: 8 | O18: =[1]Лист1!$F$146 -> 8161 | P18: =[1]Лист1!$F$145 -> 34.17 | Q18: =[1]Лист1!$F$151 -> 9.491666667 | R18: =[1]Лист1!$F$148 -> 9036 | S18: =[1]Лист1!$F$147 -> 37.83 | T18: =[1]Лист1!$F$152 -> 10.50833333 | U18: =[1]Лист1!$F$150 -> 11152 | V18: =[1]Лист1!$F$149 -> 46.69 | W18: 12.96944444 | AC18: 0
A19: 9 | B19: =[2]Лист1!$D$127 -> 86.8813 | C19: =[2]Лист1!$D$128 -> 5.643 | D19: =[2]Лист1!$D$129 -> 1.258 | E19: =[2]Лист1!$D$130 -> 0.152 | F19: =[2]Лист1!$D$131 -> 0.203 | G19: =[2]Лист1!$D$132 -> 0.0067 | H19: =[2]Лист1!$D$133 -> 0.063 | I19: =[2]Лист1!$D$134 -> 0.039 | J19: =[2]Лист1!$D$135 -> 0.09 | K19: =[2]Лист1!$D$136 -> 0.004 | L19: =[2]Лист1!$D$137 -> 0.248 | M19: =[2]Лист1!$D$138 -> 5.412 | N19: =[2]Лист1!$F$144 -> 0.792 | O19: =[2]Лист1!$F$146 -> 8164 | P19: =[2]Лист1!$F$145 -> 34.18 | Q19: =[2]Лист1!$F$151 -> 9.494444444 | R19: =[2]Лист1!$F$148 -> 9038 | S19: =[2]Лист1!$F$147 -> 37.84 | T19: =[2]Лист1!$F$152 -> 10.51111111 | U19: =[2]Лист1!$F$150 -> 11147 | V19: =[2]Лист1!$F$149 -> 46.67 | W19: =V19/3.6 -> 12.96388889 | X19: -9 | Y19: -10.7 | AC19: 100 | AD19: ОК
A20: 10 | O20: =[2]Лист1!$F$146 -> 8164 | P20: =[2]Лист1!$F$145 -> 34.18 | Q20: =[2]Лист1!$F$151 -> 9.494444444 | R20: =[2]Лист1!$F$148 -> 9038 | S20: =[2]Лист1!$F$147 -> 37.84 | T20: =[2]Лист1!$F$152 -> 10.51111111 | U20: =[2]Лист1!$F$150 -> 11147 | V20: =[2]Лист1!$F$149 -> 46.67 | W20: =V20/3.6 -> 12.96388889 | Z20: 0.0009 | AA20: < 0,0002 | AB20: відс. | AC20: 0
A21: 11 | O21: =[2]Лист1!$F$146 -> 8164 | P21: =[2]Лист1!$F$145 -> 34.18 | Q21: =[2]Лист1!$F$151 -> 9.494444444 | R21: =[2]Лист1!$F$148 -> 9038 | S21: =[2]Лист1!$F$147 -> 37.84 | T21: =[2]Лист1!$F$152 -> 10.51111111 | U21: =[2]Лист1!$F$150 -> 11147 | V21: =[2]Лист1!$F$149 -> 46.67 | W21: 12.96388889 | AC21: 0
A22: 12 | O22: =[2]Лист1!$F$146 -> 8164 | P22: =[2]Лист1!$F$145 -> 34.18 | Q22: =[2]Лист1!$F$151 -> 9.494444444 | R22: =[2]Лист1!$F$148 -> 9038 | S22: =[2]Лист1!$F$147 -> 37.84 | T22: =[2]Лист1!$F$152 -> 10.51111111 | U22: =[2]Лист1!$F$150 -> 11147 | V22: =[2]Лист1!$F$149 -> 46.67 | W22: 12.96388889 | AC22: 0
A23: 13 | O23: =[2]Лист1!$F$146 -> 8164 | P23: =[2]Лист1!$F$145 -> 34.18 | Q23: =[2]Лист1!$F$151 -> 9.494444444 | R23: =[2]Лист1!$F$148 -> 9038 | S23: =[2]Лист1!$F$147 -> 37.84 | T23: =[2]Лист1!$F$152 -> 10.51111111 | U23: =[2]Лист1!$F$150 -> 11147 | V23: =[2]Лист1!$F$149 -> 46.67 | W23: 12.96388889 | AC23: 0
A24: 14 | O24: =[2]Лист1!$F$146 -> 8164 | P24: =[2]Лист1!$F$145 -> 34.18 | Q24: =[2]Лист1!$F$151 -> 9.494444444 | R24: =[2]Лист1!$F$148 -> 9038 | S24: =[2]Лист1!$F$147 -> 37.84 | T24: =[2]Лист1!$F$152 -> 10.51111111 | U24: =[2]Лист1!$F$150 -> 11147 | V24: =[2]Лист1!$F$149 -> 46.67 | W24: 12.96388889 | AC24: 0
A25: 15 | B25: =[3]Лист1!$D$127 -> 87.1194 | C25: =[3]Лист1!$D$128 -> 5.549 | D25: =[3]Лист1!$D$129 -> 1.238 | E25: =[3]Лист1!$D$130 -> 0.149 | F25: =[3]Лист1!$D$131 -> 0.198 | G25: =[3]Лист1!$D$132 -> 0.0066 | H25: =[3]Лист1!$D$133 -> 0.061 | I25: =[3]Лист1!$D$134 -> 0.042 | J25: =[3]Лист1!$D$135 -> 0.08 | K25: =[3]Лист1!$D$136 -> 0.004 | L25: =[3]Лист1!$D$137 -> 0.246 | M25: =[3]Лист1!$D$138 -> 5.307 | N25: =[3]Лист1!$F$144 -> 0.7896 | O25: =[3]Лист1!$F$146 -> 8159 | P25: =[3]Лист1!$F$145 -> 34.16 | Q25: =[3]Лист1!$F$151 -> 9.488888889 | R25: =[3]Лист1!$F$148 -> 9033 | S25: =[3]Лист1!$F$147 -> 37.82 | T25: =[3]Лист1!$F$152 -> 10.50555556 | U25: =[3]Лист1!$F$150 -> 11159 | V25: =[3]Лист1!$F$149 -> 46.72 | W25: =V25/3.6 -> 12.97777778 | X25: -9.5 | Y25: -11.9 | AC25: 100 | AD25: ОК
A26: 16 | O26: =[3]Лист1!$F$146 -> 8159 | P26: =[3]Лист1!$F$145 -> 34.16 | Q26: =[3]Лист1!$F$151 -> 9.488888889 | R26: =[3]Лист1!$F$148 -> 9033 | S26: =[3]Лист1!$F$147 -> 37.82 | T26: =[3]Лист1!$F$152 -> 10.50555556 | U26: =[3]Лист1!$F$150 -> 11159 | V26: =[3]Лист1!$F$149 -> 46.72 | W26: =V26/3.6 -> 12.97777778 | AC26: 0
A27: 17 | O27: =[3]Лист1!$F$146 -> 8159 | P27: =[3]Лист1!$F$145 -> 34.16 | Q27: =[3]Лист1!$F$151 -> 9.488888889 | R27: =[3]Лист1!$F$148 -> 9033 | S27: =[3]Лист1!$F$147 -> 37.82 | T27: =[3]Лист1!$F$152 -> 10.50555556 | U27: =[3]Лист1!$F$150 -> 11159 | V27: =[3]Лист1!$F$149 -> 46.72 | W27: 12.97777778 | AC27: 0
A28: 18 | O28: =[3]Лист1!$F$146 -> 8159 | P28: =[3]Лист1!$F$145 -> 34.16 | Q28: =[3]Лист1!$F$151 -> 9.488888889 | R28: =[3]Лист1!$F$148 -> 9033 | S28: =[3]Лист1!$F$147 -> 37.82 | T28: =[3]Лист1!$F$152 -> 10.50555556 | U28: =[3]Лист1!$F$150 -> 11159 | V28: =[3]Лист1!$F$149 -> 46.72 | W28: 12.97777778 | AC28: 0
A29: 19 | O29: =[3]Лист1!$F$146 -> 8159 | P29: =[3]Лист1!$F$145 -> 34.16 | Q29: =[3]Лист1!$F$151 -> 9.488888889 | R29: =[3]Лист1!$F$148 -> 9033 | S29: =[3]Лист1!$F$147 -> 37.82 | T29: =[3]Лист1!$F$152 -> 10.50555556 | U29: =[3]Лист1!$F$150 -> 11159 | V29: =[3]Лист1!$F$149 -> 46.72 | W29: 12.97777778 | AC29: 0
A30: 20 | O30: =[3]Лист1!$F$146 -> 8159 | P30: =[3]Лист1!$F$145 -> 34.16 | Q30: =[3]Лист1!$F$151 -> 9.488888889 | R30: =[3]Лист1!$F$148 -> 9033 | S30: =[3]Лист1!$F$147 -> 37.82 | T30: =[3]Лист1!$F$152 -> 10.50555556 | U30: =[3]Лист1!$F$150 -> 11159 | V30: =[3]Лист1!$F$149 -> 46.72 | W30: 12.97777778 | AC30: 0 | AD30: =IF(AC30=100,"ОК"," ") -> 
A31: 21 | O31: =[3]Лист1!$F$146 -> 8159 | P31: =[3]Лист1!$F$145 -> 34.16 | Q31: =[3]Лист1!$F$151 -> 9.488888889 | R31: =[3]Лист1!$F$148 -> 9033 | S31: =[3]Лист1!$F$147 -> 37.82 | T31: =[3]Лист1!$F$152 -> 10.50555556 | U31: =[3]Лист1!$F$150 -> 11159 | V31: =[3]Лист1!$F$149 -> 46.72 | W31: 12.97777778 | AC31: 0
A32: 22 | B32: =[4]Лист1!$D$127 -> 86.9175 | C32: =[4]Лист1!$D$128 -> 5.629 | D32: =[4]Лист1!$D$129 -> 1.252 | E32: =[4]Лист1!$D$130 -> 0.151 | F32: =[4]Лист1!$D$131 -> 0.202 | G32: =[4]Лист1!$D$132 -> 0.0065 | H32: =[4]Лист1!$D$133 -> 0.063 | I32: =[4]Лист1!$D$134 -> 0.04 | J32: =[4]Лист1!$D$135 -> 0.088 | K32: =[4]Лист1!$D$136 -> 0.003 | L32: =[4]Лист1!$D$137 -> 0.246 | M32: =[4]Лист1!$D$138 -> 5.402 | N32: =[4]Лист1!$F$144 -> 0.7916 | O32: =[4]Лист1!$F$146 -> 8161 | P32: =[4]Лист1!$F$145 -> 34.17 | Q32: =[4]Лист1!$F$151 -> 9.491666667 | R32: =[4]Лист1!$F$148 -> 9038 | S32: =[4]Лист1!$F$147 -> 37.84 | T32: =[4]Лист1!$F$152 -> 10.51111111 | U32: =[4]Лист1!$F$150 -> 11147 | V32: =[4]Лист1!$F$149 -> 46.67 | W32: =V32/3.6 -> 12.96388889 | X32: -12.6 | Y32: -9.5 | AC32: 100 | AD32: ОК
A33: 23 | O33: =[4]Лист1!$F$146 -> 8161 | P33: =[4]Лист1!$F$145 -> 34.17 | Q33: =[4]Лист1!$F$151 -> 9.491666667 | R33: =[4]Лист1!$F$148 -> 9038 | S33: =[4]Лист1!$F$147 -> 37.84 | T33: =[4]Лист1!$F$152 -> 10.51111111 | U33: =[4]Лист1!$F$150 -> 11147 | V33: =[4]Лист1!$F$149 -> 46.67 | W33: =V33/3.6 -> 12.96388889 | AC33: 0 | AD33: =IF(AC33=100,"ОК"," ") -> 
A34: 24 | O34: =[4]Лист1!$F$146 -> 8161 | P34: =[4]Лист1!$F$145 -> 34.17 | Q34: =[4]Лист1!$F$151 -> 9.491666667 | R34: =[4]Лист1!$F$148 -> 9038 | S34: =[4]Лист1!$F$147 -> 37.84 | T34: =[4]Лист1!$F$152 -> 10.51111111 | U34: =[4]Лист1!$F$150 -> 11147 | V34: =[4]Лист1!$F$149 -> 46.67 | W34: 12.96388889 | AC34: 0
A35: 25 | O35: =[4]Лист1!$F$146 -> 8161 | P35: =[4]Лист1!$F$145 -> 34.17 | Q35: =[4]Лист1!$F$151 -> 9.491666667 | R35: =[4]Лист1!$F$148 -> 9038 | S35: =[4]Лист1!$F$147 -> 37.84 | T35: =[4]Лист1!$F$152 -> 10.51111111 | U35: =[4]Лист1!$F$150 -> 11147 | V35: =[4]Лист1!$F$149 -> 46.67 | W35: 12.96388889 | AC35: 0
A36: 26 | O36: =[4]Лист1!$F$146 -> 8161 | P36: =[4]Лист1!$F$145 -> 34.17 | Q36: =[4]Лист1!$F$151 -> 9.491666667 | R36: =[4]Лист1!$F$148 -> 9038 | S36: =[4]Лист1!$F$147 -> 37.84 | T36: =[4]Лист1!$F$152 -> 10.51111111 | U36: =[4]Лист1!$F$150 -> 11147 | V36: =[4]Лист1!$F$149 -> 46.67 | W36: 12.96388889 | AC36: 0
A37: 27 | O37: =[4]Лист1!$F$146 -> 8161 | P37: =[4]Лист1!$F$145 -> 34.17 | Q37: =[4]Лист1!$F$151 -> 9.491666667 | R37: =[4]Лист1!$F$148 -> 9038 | S37: =[4]Лист1!$F$147 -> 37.84 | T37: =[4]Лист1!$F$152 -> 10.51111111 | U37: =[4]Лист1!$F$150 -> 11147 | V37: =[4]Лист1!$F$149 -> 46.67 | W37: 12.96388889 | AC37: 0
A38: 28 | O38: =[4]Лист1!$F$146 -> 8161 | P38: =[4]Лист1!$F$145 -> 34.17 | Q38: =[4]Лист1!$F$151 -> 9.491666667 | R38: =[4]Лист1!$F$148 -> 9038 | S38: =[4]Лист1!$F$147 -> 37.84 | T38: =[4]Лист1!$F$152 -> 10.51111111 | U38: =[4]Лист1!$F$150 -> 11147 | V38: =[4]Лист1!$F$149 -> 46.67 | W38: 12.96388889 | AC38: 0
A39: 29 | B39: =[5]Лист1!$D$127 -> 87.0655 | C39: =[5]Лист1!$D$128 -> 5.567 | D39: =[5]Лист1!$D$129 -> 1.242 | E39: =[5]Лист1!$D$130 -> 0.149 | F39: =[5]Лист1!$D$131 -> 0.2 | G39: =[5]Лист1!$D$132 -> 0.0065 | H39: =[5]Лист1!$D$133 -> 0.062 | I39: =[5]Лист1!$D$134 -> 0.041 | J39: =[5]Лист1!$D$135 -> 0.085 | K39: =[5]Лист1!$D$136 -> 0.005 | L39: =[5]Лист1!$D$137 -> 0.245 | M39: =[5]Лист1!$D$138 -> 5.332 | N39: =[5]Лист1!$F$144 -> 0.7902 | O39: =[5]Лист1!$F$146 -> 8161 | P39: =[5]Лист1!$F$145 -> 34.17 | Q39: =[5]Лист1!$F$151 -> 9.491666667 | R39: =[5]Лист1!$F$148 -> 9036 | S39: =[5]Лист1!$F$147 -> 37.83 | T39: =[5]Лист1!$F$152 -> 10.50833333 | U39: =[5]Лист1!$F$150 -> 11156 | V39: =[5]Лист1!$F$149 -> 46.71 | W39: =V39/3.6 -> 12.975 | X39: -6.8 | Y39: -5.3 | AC39: 100 | AD39: ОК
A40: 30 | O40: =[5]Лист1!$F$146 -> 8161 | P40: =[5]Лист1!$F$145 -> 34.17 | Q40: =[5]Лист1!$F$151 -> 9.491666667 | R40: =[5]Лист1!$F$148 -> 9036 | S40: =[5]Лист1!$F$147 -> 37.83 | T40: =[5]Лист1!$F$152 -> 10.50833333 | U40: =[5]Лист1!$F$150 -> 11156 | V40: =[5]Лист1!$F$149 -> 46.71 | W40: =V40/3.6 -> 12.975 | AC40: 0
A41: 31 | O41: =[5]Лист1!$F$146 -> 8161 | P41: =[5]Лист1!$F$145 -> 34.17 | Q41: =[5]Лист1!$F$151 -> 9.491666667 | R41: =[5]Лист1!$F$148 -> 9036 | S41: =[5]Лист1!$F$147 -> 37.83 | T41: =[5]Лист1!$F$152 -> 10.50833333 | U41: =[5]Лист1!$F$150 -> 11156 | V41: =[5]Лист1!$F$149 -> 46.71 | W41: 12.975 | AC41: 0
A42: Рівень одоризації відповідає чинним нормативним документам | O42: 8161.402637 | P42: 34.17046223 | Q42: 9.491795065 | R42: 9036.151106 | S42: 37.83223141 | T42: 10.50895317
H43: Середньозважене значення теплоти згоряння:
B46: Головний інженер Лубенського ЛВУМГ Сирота В.П. 01.06.2017 року
C47: Підрозділу підприємства, якому підпорядкована лабораторія | O47: прізвище | R47: підпис | V47: дата
B48: Завідувач лабораторією Лубенського ЛВУМГ Алєксєєнко Н.А. 01.06.2017 року
C49: Лабораторія, де здійснювалось вимірювання газу | O49: прізвище | R49: підпис | V49: дата
B50: Начальник служби ГВ та М Шило О.Є. 01.06.2017 року
C51: Підрозділу, відповідального за облік газу за маршрутом | O51: прізвище | R51: підпис | V51: дата

Sheet розрахунок
A2: Додаток до Паспорту фізико-хімічних показників природного газу по маршруту № 58
A4: Число місяця | B4: Теплота згоряння вища, МДж/м3 | C4: Полтавська | G4: Загальний обсяг газу, м3
C5: Обсяг газу переданого за добу, м3
C6: ГРС Гоголеве (Гоголеве-Миргород) | D6: ГРС Гоголеве (Радченки-Полтава) | E6: ГРС Гоголеве (В.Багачка) | F6: ГРС В.Сорочинці
A7: 1 | B7: 37.83 | C7: 16670.5 | D7: 0 | E7: 9525.1 | F7: 2234.8 | G7: =SUM(C7:F7) -> 28430.4
A8: 2 | B8: =[1]Лист1!$F$147 -> 37.83 | C8: 17986 | D8: 0 | E8: 9502.9 | F8: 2250.5 | G8: 29739.4
A9: 3 | B9: =[1]Лист1!$F$147 -> 37.83 | C9: 18601.4 | D9: 0 | E9: 10192 | F9: 2165 | G9: 30958.4
A10: 4 | B10: =[1]Лист1!$F$147 -> 37.83 | C10: 17982.3 | D10: 0 | E10: 9495.4 | F10: 2234.1 | G10: 29711.8
A11: 5 | B11: =[1]Лист1!$F$147 -> 37.83 | C11: 17464.4 | D11: 0 | E11: 9403.1 | F11: 2325.5 | G11: 29193
A12: 6 | B12: =[1]Лист1!$F$147 -> 37.83 | C12: 17845.5 | D12: 2370.7 | E12: 8455 | F12: 2488.7 | G12: 31159.9
A13: 7 | B13: =[1]Лист1!$F$147 -> 37.83 | C13: 16145.8 | D13: 0 | E13: 8164.2 | F13: 2191.9 | G13: 26501.9
A14: 8 | B14: =[1]Лист1!$F$147 -> 37.83 | C14: 15236.6 | D14: 0 | E14: 7492.2 | F14: 2232.1 | G14: 24960.9
A15: 9 | B15: =[2]Лист1!$F$147 -> 37.84 | C15: 18127 | D15: 0 | E15: 10214.2 | F15: 2659.8 | G15: 31001
A16: 10 | B16: =[2]Лист1!$F$147 -> 37.84 | C16: 25322.3 | D16: 0 | E16: 13976.4 | F16: 4293 | G16: 43591.7
A17: 11 | B17: =[2]Лист1!$F$147 -> 37.84 | C17: 25893.1 | D17: 0 | E17: 11109.9 | F17: 4296.5 | G17: 41299.5
A18: 12 | B18: =[2]Лист1!$F$147 -> 37.84 | C18: 31671.8 | D18: 0 | E18: 19007.8 | F18: 5336.2 | G18: 56015.8
A19: 13 | B19: =[2]Лист1!$F$147 -> 37.84 | C19: 32381.6 | D19: 2189 | E19: 18925.4 | F19: 6137.9 | G19: 59633.9
A20: 14 | B20: =[2]Лист1!$F$147 -> 37.84 | C20: 29509.8 | D20: 0 | E20: 16798 | F20: 4716.2 | G20: 51024
A21: 15 | B21: =[3]Лист1!$F$147 -> 37.82 | C21: 22336.8 | D21: 0 | E21: 9299.5 | F21: 2984.2 | G21: 34620.5
A22: 16 | B22: =[3]Лист1!$F$147 -> 37.82 | C22: 18464.1 | D22: 0 | E22: 5023.2 | F22: 2436.2 | G22: 25923.5
A23: 17 | B23: =[3]Лист1!$F$147 -> 37.82 | C23: 19821.2 | D23: 0 | E23: 3842.9 | F23: 2870.8 | G23: 26534.9
A24: 18 | B24: =[3]Лист1!$F$147 -> 37.82 | C24: 23173.4 | D24: 0 | E24: 2514.5 | F24: 3639.4 | G24: 29327.3
A25: 19 | B25: =[3]Лист1!$F$147 -> 37.82 | C25: 25743 | D25: 0 | E25: 3853.3 | F25: 4160.9 | G25: 33757.2
A26: 20 | B26: =[3]Лист1!$F$147 -> 37.82 | C26: 24718.2 | D26: 2112.5 | E26: 3773.7 | F26: 4022.5 | G26: 34626.9
A27: 21 | B27: =[3]Лист1!$F$147 -> 37.82 | C27: 21355.9 | D27: 0 | E27: 2653.6 | F27: 3228.8 | G27: 27238.3
A28: 22 | B28: =[4]Лист1!$F$147 -> 37.84 | C28: 21419 | D28: 0 | E28: 537.6 | F28: 2587.9 | G28: 24544.5
A29: 23 | B29: =[4]Лист1!$F$147 -> 37.84 | C29: 17233.2 | D29: 0 | E29: 91.6 | F29: 2110.5 | G29: 19435.3
A30: 24 | B30: =[4]Лист1!$F$147 -> 37.84 | C30: 15946.1 | D30: 0 | E30: 0 | F30: 2096.7 | G30: 18042.8
A31: 25 | B31: =[4]Лист1!$F$147 -> 37.84 | C31: 16090.2 | D31: 0 | E31: 0 | F31: 1935.4 | G31: 18025.6
A32: 26 | B32: =[4]Лист1!$F$147 -> 37.84 | C32: 14897.2 | D32: 0 | E32: 0 | F32: 1914.9 | G32: 16812.1
A33: 27 | B33: =[4]Лист1!$F$147 -> 37.84 | C33: 15187.5 | D33: 0 | E33: 692.2 | F33: 2331.9 | G33: 18211.6
A34: 28 | B34: =[4]Лист1!$F$147 -> 37.84 | C34: 15246.3 | D34: 0 | E34: 342.6 | F34: 2071.3 | G34: 17660.2
A35: 29 | B35: =[5]Лист1!$F$147 -> 37.83 | C35: 14521 | D35: 0 | E35: 0 | F35: 1768.9 | G35: 16289.9
A36: 30 | B36: =[5]Лист1!$F$147 -> 37.83 | C36: 15281.5 | D36: 0 | E36: 0 | F36: 1795.5 | G36: 17077
A37: 31 | B37: =[5]Лист1!$F$147 -> 37.83 | C37: 15470.9 | D37: 2440.8 | E37: 0.3 | F37: 1682.8 | G37: 19594.8
A38: Загальний обсяг газу, м3 | C38: =SUM(C7:C37) -> 617743.6 | D38: =SUM(D7:D37) -> 9113 | E38: 194886.6 | F38: =SUM(F7:F37) -> 89200.8 | G38: =SUM(G7:G37) -> 910944
A39: Енергія, МДж | C39: =SUMPRODUCT(B7:B37,C7:C37) -> 23370473.51 | D39: =SUMPRODUCT(B7:B37,D7:D37) -> 344745.555 | E39: =SUMPRODUCT(B7:B37,E7:E37) -> 7373167.428 | F39: =SUMPRODUCT(B7:B37,F7:F37) -> 3374657.718 | G39: =SUMPRODUCT(B7:B37,G7:G37) -> 34463044.21
A40: Теплота згоряння (середньозважене значення за місяць), МДж/м³ | C40: 37.83199618 | D40: 37.83008395 | E40: 37.83311643 | F40: 37.83214633 | G40: 37.83223141
A41: Теплота згоряння (середньозважене значення за місяць), ккал/м³ | C41: 9036.017175 | D41: 9035.560447 | E41: 9036.284743 | F41: 9036.053038 | G41: 9036.073361
A42: Теплота згоряння (середньозважене значення за місяць), кВт*год./м³ | C42: 10.50888783 | D42: 10.50835665 | E42: 10.50919901 | F42: 10.50892954 | G42: 10.50895317

Sheet додаток
A2: Додаток до Паспорту фізико-хімічних показників природного газу № 58
A4: Область | B4: ГРС, прямий споживач | C4: Cередньозважене значення вищої теплоти згоряння
C5: МДж/м³ | D5: ккал/м³ | E5: кВт*год./м³
A6: Полтавська область | B6: ГРС Гоголеве (Гоголеве-Миргород) | C6: 37.83199618 | D6: 9036.017175 | E6: 10.50888783
B7: ГРС Гоголеве (Радченки-Полтава) | C7: 37.83008395 | D7: 9035.560447 | E7: 10.50835665
B8: ГРС Гоголеве (В.Багачка) | C8: 37.83311643 | D8: 9036.284743 | E8: 10.50919901
B9: ГРС В.Сорочинці | C9: 37.83214633 | D9: 9036.053038 | E9: 10.50892954
A10: Середньозважене значення вищої теплоти згоряння по маршруту № 58 | C10: 37.83223141 | D10: 9036.073361 | E10: 10.50895317
A14: Головний інженер Лубенського ЛВУМГ Сирота В.П. | F14: 01.06.2017 року
A15: Підрозділу підприємства, якому підпорядкована лабораторія | D15: прізвище | E15: підпис | F15: дата
A16: Завідувач лабораторією Лубенського ЛВУМГ Алєксєєнко Н.А. | F16: =F14 -> 01.06.2017 року
A17: Лабораторія, де здійснювалось вимірювання газу | D17: прізвище | E17: підпис | F17: дата
A18: Начальник служби ГВ та М Шило О.Є | F18: =F14 -> 01.06.2017 року
A19: Підрозділу, відповідального за облік газу за маршрутом | D19: прізвище | E19: підпис | F19: дата

Sheet variablesList (hidden)
A1: 3 | B1: x:\gaysin | C1: 10, 11, 24, 25, 127, 128, 132, 180, 207, 215 | D1: x:\
B2: x:\Illinci
B3: x:\Talne
